{"text_format":"3","workbook":"xlsx","n_sheets":4,"sheets":["Početak","Troškovi","Prihod","Rezime"],"not_rendered":{"charts":1,"defined_names":2},"read":"whole","date_system":"1900"}

{"sheet":"Početak","index":0,"n_rows":8,"n_cols":2,"rows_kept":8}
[null,"OSNOVNI PODACI O OVOM PREDLOŠKU"]
[null,"Koristite ovu radnu svesku sa budžetom događaja da biste pratili troškovi i prihod od događaja."]
[null,"Popunite ime događaja i unesite detalje u tabele na radnim listovima troškovi i Prihod."]
[null,"Ukupan troškovi i ukupan prihod izračunavaju se automatski."]
[null,"Rezime profita i gubitaka automatski se ažuriraju na radnom listu „Rezime“."]
[null,"Napomena: "]
[null,"Dodatna uputstva navedena su u koloni A na svakom radnom listu. Taj tekst je namerno skriven. Da biste uklonili tekst, izaberite kolonu A, a zatim izaberite stavku „IZBRIŠI“. Da biste otkrili tekst, izaberite kolonu A, a zatim promenite boju fonta."]
[null,"Da biste saznali više o tabelama, pritisnite taster SHIFT, a zatim unutar tabele pritisnite taster F10, izaberite opciju „TABELA“, a zatim stavku „ALTERNATIVNI TEKST“."]

{"sheet":"Troškovi","index":1,"n_rows":33,"n_cols":8,"rows_kept":33,"merged":[[0,5,0,7],[1,1,1,7],[2,6,2,7]]}
["Unesite procenjeno i Stvarno troškove za svaku kategoriju u odgovarajućim tabelama u ovom radnom listu. ukupan troškovi izračunavaju se automatski. Korisna uputstva o tome kako da koristite ovaj radni list nalaze se u ćelijama u ovoj koloni. Pritisnite strelicu nadole da biste počeli."]
["Unesite ime događaja u ćeliju sa desne strane da biste prilagodili naslov ovog i drugih radnih listova.","Budžet događaja za \nIme događaja"]
["Oznaka „Troškovi“ je u ćeliji G3.",{"$nulls":5},"Troškovi"]
["Oznaka „Procenjeno“ je u ćeliji G4, a oznaka „Stvarno“ u ćeliji H4.",{"$nulls":5},"Procenjeno","Stvarno"]
["Oznaka „Ukupan troškovi“ je u ćeliji sa desne strane. Procenjeno ukupan troškovi izračunavaju se automatski u ćeliji G5. Stvarno ukupan troškovi i trakasti grafikon sa podacima koji prikazuje ukupne stvarne troškove automatski se ažuriraju u ćeliji H5. Sledeće uputstvo nalazi se u ćeliji A7.","Ukupan Troškovi",{"$nulls":4},{"$f":"SUM(C12,C20,C26,C33,G12,G20,G25)","v":{"v":1145,"d":"1,145.00 RSD"}},{"$f":"SUM(D12,D20,D26,D33,H12,H20,H25)","v":{"v":395,"d":"395.00 RSD"}}]
[]
["Unesite Troškovi Na Lokaciji u tabelu koja počinje od ćelije sa desne strane, a Troškovi Za Osveženje u tabelu koja počinje od ćelije F7. Sledeće uputstvo se nalazi u ćeliji A14.","Lokacija","Procenjeno","Stvarno",null,"Osveženje","Procenjeno","Stvarno"]
[null,"Naknade za sobu i predsoblje",{"v":500,"d":"500.00 RSD"},{"v":250,"d":"250.00 RSD"},null,"Hrana"]
[null,"Osoblje na lokaciji",{"v":400,"d":"400.00 RSD"},{"v":50,"d":"50.00 RSD"},null,"Pića"]
[null,"Oprema",{"$nulls":3},"Posteljina"]
[null,"Stolovi i stolice",{"$nulls":3},"Osoblje i napojnice"]
[null,"Zbir",{"$f":"SUBTOTAL(109,TroškoviNaLokaciji[Procenjeno])","v":{"v":900,"d":"900.00 RSD"}},{"$f":"SUBTOTAL(109,TroškoviNaLokaciji[Stvarno])","v":{"v":300,"d":"300.00 RSD"}},null,"Zbir",{"$f":"SUBTOTAL(109,TroškoviZaOsveženje[Procenjeno])","v":{"v":0,"d":"0.00 RSD"}},{"$f":"SUBTOTAL(109,TroškoviZaOsveženje[Stvarno])","v":{"v":0,"d":"0.00 RSD"}}]
[]
["Unesite Troškovi Za Ukrase u tabelu koja počinje od ćelije sa desne strane, a Troškovi Programa u tabelu koja počinje od ćelije F14. Sledeće uputstvo se nalazi u ćeliji A22.","Dekoracija","Procenjeno","Stvarno",null,"Program","Procenjeno","Stvarno"]
[null,"Cveće",{"v":200,"d":"200.00 RSD"},{"v":50,"d":"50.00 RSD"},null,"Izvođači"]
[null,"Sveće",{"$nulls":3},"Zvučnici"]
[null,"Rasveta",{"$nulls":3},"Putovanje"]
[null,"Baloni",{"$nulls":3},"Hotel"]
[null,"Papirni materijal",{"$nulls":3},"Drugo"]
[null,"Zbir",{"$f":"SUBTOTAL(109,TroškoviZaUkrase[Procenjeno])","v":{"v":200,"d":"200.00 RSD"}},{"$f":"SUBTOTAL(109,TroškoviZaUkrase[Stvarno])","v":{"v":50,"d":"50.00 RSD"}},null,"Zbir",{"$f":"SUBTOTAL(109,TroškoviPrograma[Procenjeno])","v":{"v":0,"d":"0.00 RSD"}},{"$f":"SUBTOTAL(109,TroškoviPrograma[Stvarno])","v":{"v":0,"d":"0.00 RSD"}}]
[]
["Unesite Troškovi Oglašavanja saopštenja u tabelu koja počinje od ćelije sa desne strane, a Troškovi Za Nagrade u tabelu koja počinje od ćelije F22. Sledeće uputstvo se nalazi u ćeliji A28.","Publicitet","Procenjeno","Stvarno",null,"Nagrade","Procenjeno","Stvarno"]
[null,"Grafički radovi",{"v":45,"d":"45.00 RSD"},{"v":45,"d":"45.00 RSD"},null,"Trake/plakete/trofeji"]
[null,"Fotokopiranje/štampanje",{"$nulls":3},"Pokloni"]
[null,"Poštarina",{"$nulls":3},"Zbir",{"$f":"SUBTOTAL(109,TroškoviZaNagrade[Procenjeno])","v":{"v":0,"d":"0.00 RSD"}},{"$f":"SUBTOTAL(109,TroškoviZaNagrade[Stvarno])","v":{"v":0,"d":"0.00 RSD"}}]
[null,"Zbir",{"$f":"SUBTOTAL(109,TroškoviOglašavanja[Procenjeno])","v":{"v":45,"d":"45.00 RSD"}},{"$f":"SUBTOTAL(109,TroškoviOglašavanja[Stvarno])","v":{"v":45,"d":"45.00 RSD"}}]
[]
["Unesite Razni Troškovi u tabelu koja počinje od ćelije sa desne strane.","Razno","Procenjeno","Stvarno"]
[null,"Telefon"]
[null,"Prevoz"]
[null,"Kancelarijski materijal"]
[null,"Usluge faksa"]
[null,"Zbir",{"$f":"SUBTOTAL(109,RazniTroškovi[Procenjeno])","v":{"v":0,"d":"0.00 RSD"}},{"$f":"SUBTOTAL(109,RazniTroškovi[Stvarno])","v":{"v":0,"d":"0.00 RSD"}}]

{"sheet":"Prihod","index":2,"n_rows":30,"n_cols":7,"rows_kept":30,"merged":[[1,1,1,6],[2,5,2,6]]}
["Unesite procenjeno i stvarno prihode iz svake kategorije u odgovarajuće tabele na ovom radnom listu. Ukupan prihod se izračunava automatski. Korisna uputstva o tome kako da koristite ovaj radni list nalaze se u ćelijama u ovoj koloni. Pritisnite strelicu nadole da biste počeli."]
["Ime događaja se automatski ažurira u ćeliji sa desne strane.",{"$f":"Troškovi!B2","v":"Budžet događaja za \nIme događaja"}]
["Oznaka „Prihod“ je u ćeliji F3.",{"$nulls":4}," Prihod"]
["Oznaka „Procenjeno“ je u ćeliji F4, a oznaka „Stvarno“ u ćeliji G4.",{"$nulls":4},"Procenjeno","Stvarno"]
["Oznaka „Ukupan prihod“ nalazi se u ćeliji sa desne strane. procenjeno ukupan prihod se automatski izračunava u ćeliji F5. Stvarno ukupan prihod i trakasti grafikon sa podacima koji prikazuje Stvarno ukupan prihod automatski se ažuriraju u ćeliji G5.","Ukupan prihod",{"$nulls":3},{"$f":"SUM(Ulaz[[#Totals],[Procenjeno ukupan]],ReklameUProgramu[[#Totals],[Procenjeno ukupan]],IzlagačiIProdavci[[#Totals],[Procenjeno ukupan]],ProdajaArtikala[[#Totals],[Procenjeno ukupan]])","v":{"v":1936,"d":"1,936.00 RSD"}},{"$f":"SUM(Ulaz[[#Totals],[Stvarno ukupan]],ReklameUProgramu[[#Totals],[Stvarno ukupan]],IzlagačiIProdavci[[#Totals],[Stvarno ukupan]],ProdajaArtikala[[#Totals],[Stvarno ukupan]])","v":{"v":1831,"d":"1,831.00 RSD"}}]
["Oznaka „Ulaz“ nalazi se u ćeliji sa desne strane.","Ulaz"]
["Unesite procenjeno i Stvarno broj posetilaca sa cenom karte u tabelu koja počinje od ćelije sa desne strane. Procenjeno i Stvarno prihod od ulaz automatski se izračunava. Sledeće uputstvo se nalazi u ćeliji A12.","Procenjeno","Stvarno","Tip","Cena","Procenjeno ukupan","Stvarno ukupan"]
[null,300,278,"Odrasli @",{"v":5,"d":"5.00 RSD"},{"$f":"B8*E8","v":{"v":1500,"d":"1,500.00 RSD"}},{"$f":"C8*E8","v":{"v":1390,"d":"1,390.00 RSD"}}]
[null,197,195,"Deca @",{"v":2,"d":"2.00 RSD"},{"$f":"B9*E9","v":{"v":394,"d":"394.00 RSD"}},{"$f":"C9*E9","v":{"v":390,"d":"390.00 RSD"}}]
[null,42,51,"Drugo @",{"v":1,"d":"1.00 RSD"},{"v":42,"d":"42.00 RSD"},{"v":51,"d":"51.00 RSD"}]
[null," ",{"$nulls":3},{"$f":"SUBTOTAL(109,Ulaz[Procenjeno ukupan])","v":{"v":1936,"d":"1,936.00 RSD"}},{"$f":"SUBTOTAL(109,Ulaz[Stvarno ukupan])","v":{"v":1831,"d":"1,831.00 RSD"}}]
["Oznaka reklame u programu nalazi se u ćeliji sa desne strane.","Reklame u programu"]
["Unesite procenjeno i Stvarno broj reklama u programu i cenu reklame u tabelu koja počinje od ćelije sa desne strane. procenjeno i Stvarno prihod od reklama se automatski izračunava. Sledeće uputstvo se nalazi u ćeliji A18.","Procenjeno","Stvarno","Tip","Cena","Procenjeno ukupan","Stvarno ukupan"]
[{"$nulls":3},"Naslovne stranice @",null,{"$f":"B14*E14","v":{"v":0,"d":"0.00 RSD"}},{"$f":"C14*E14","v":{"v":0,"d":"0.00 RSD"}}]
[{"$nulls":3},"Polovine stranice @",null,{"$f":"B15*E15","v":{"v":0,"d":"0.00 RSD"}},{"$f":"C15*E15","v":{"v":0,"d":"0.00 RSD"}}]
[{"$nulls":3},"Četvrtine stranice @",null,{"v":0,"d":"0.00 RSD"},{"v":0,"d":"0.00 RSD"}]
[null," ",{"$nulls":3},{"$f":"SUBTOTAL(109,ReklameUProgramu[Procenjeno ukupan])","v":{"v":0,"d":"0.00 RSD"}},{"$f":"SUBTOTAL(109,ReklameUProgramu[Stvarno ukupan])","v":{"v":0,"d":"0.00 RSD"}}]
["Oznaka „Izlagači i prodavci“ nalazi se u ćeliji sa desne strane.","Izlagači/prodavci"]
["Unesite procenjeno i Stvarno broj Izlagači i prodavci i cenu štanda u tabelu koja počinje od ćelije sa desne strane. procenjeno i Stvarno prihod se automatski izračunava. Sledeće uputstvo se nalazi u ćeliji A24.","Procenjeno","Stvarno","Tip","Cena","Procenjeno ukupan","Stvarno ukupan"]
[{"$nulls":3},"Veliki štandovi @",null,{"$f":"B20*E20","v":{"v":0,"d":"0.00 RSD"}},{"$f":"C20*E20","v":{"v":0,"d":"0.00 RSD"}}]
[{"$nulls":3},"Srednji štandovi @",null,{"$f":"B21*E21","v":{"v":0,"d":"0.00 RSD"}},{"$f":"C21*E21","v":{"v":0,"d":"0.00 RSD"}}]
[{"$nulls":3},"Mali štandovi @",null,{"v":0,"d":"0.00 RSD"},{"v":0,"d":"0.00 RSD"}]
[null," ",{"$nulls":3},{"$f":"SUBTOTAL(109,IzlagačiIProdavci[Procenjeno ukupan])","v":{"v":0,"d":"0.00 RSD"}},{"$f":"SUBTOTAL(109,IzlagačiIProdavci[Stvarno ukupan])","v":{"v":0,"d":"0.00 RSD"}}]
["Oznaka „Prodaja artikala“ je u ćeliji sa desne strane.","Prodaja artikala"]
["Unesite procenjeno i Stvarno broj Prodaja artikala i cene artikala u tabelu koja počinje od ćelije sa desne strane. procenjeno i Stvarno prihod se automatski izračunava.","Procenjeno","Stvarno","Tip","Cena","Procenjeno ukupan","Stvarno ukupan"]
[{"$nulls":3},"Artikli @",null,{"$f":"B26*E26","v":{"v":0,"d":"0.00 RSD"}},{"$f":"C26*E26","v":{"v":0,"d":"0.00 RSD"}}]
[{"$nulls":3},"Artikli @",null,{"$f":"B27*E27","v":{"v":0,"d":"0.00 RSD"}},{"$f":"C27*E27","v":{"v":0,"d":"0.00 RSD"}}]
[{"$nulls":3},"Artikli @",null,{"v":0,"d":"0.00 RSD"},{"v":0,"d":"0.00 RSD"}]
[{"$nulls":3},"Artikli @",null,{"v":0,"d":"0.00 RSD"},{"v":0,"d":"0.00 RSD"}]
[null," ",{"$nulls":3},{"$f":"SUBTOTAL(109,ProdajaArtikala[Procenjeno ukupan])","v":{"v":0,"d":"0.00 RSD"}},{"$f":"SUBTOTAL(109,ProdajaArtikala[Stvarno ukupan])","v":{"v":0,"d":"0.00 RSD"}}]

{"sheet":"Rezime","index":3,"n_rows":9,"n_cols":4,"rows_kept":9,"merged":[[1,1,1,3],[2,2,2,3],[8,1,8,4],[9,1,9,3]]}
["Rezime profita i gubitaka koji prikazuju ukupan prihod i troškovi automatski se ažuriraju na ovom radnom listu. Korisna uputstva o tome kako da koristite ovaj radni list nalaze se u ćelijama u ovoj koloni. Pritisnite strelicu nadole da biste počeli."]
["Ime događaja se automatski ažurira u ćeliji sa desne strane.",{"$f":"Troškovi!B2","v":"Budžet događaja za \nIme događaja"}]
["Oznaka „Rezime profita i gubitaka“ nalazi se u ćeliji C3. Sledeće uputstvo se nalazi u ćeliji A5.",null,"Rezime profita i gubitaka"]
[]
["Tabela sa Zbir vrednostima koja počinje u ćeliji sa desne strane automatski se ažurira. Sledeće uputstvo se nalazi u ćeliji A9.","Zbir","Procenjeno","Stvarno"]
[null,"Ukupan prihod",{"$f":"Prihod!F5","v":{"v":1936,"d":"1,936.00 RSD"}},{"$f":"Prihod!G5","v":{"v":1831,"d":"1,831.00 RSD"}}]
[null,"Ukupan troškovi",{"$f":"Troškovi!G5","v":{"v":1145,"d":"1,145.00 RSD"}},{"$f":"Troškovi!H5","v":{"v":395,"d":"395.00 RSD"}}]
[null,"Ukupni profit (ili gubitak)",{"$f":"C6-C7","v":{"v":791,"d":"791.00 RSD"}},{"$f":"D6-D7","v":{"v":1436,"d":"1,436.00 RSD"}}]
["Grupisani stubičasti grafikon koji prikazuje poređenje procenjeno i stvarno Ukupan prihod i Ukupan troškovi nalazi se u ćeliji sa desne strane.","Grupisani stubičasti grafikon koji prikazuje poređenje procenjeno i stvarno Ukupan prihod i Ukupan troškovi nalazi se u ovoj ćeliji."]